bitfinex/quotes_BTCUSD_20241023
["timestamp","ask_amount","ask_price","bid_price","bid_amount"]
[1729641924534,0.1871227,67376.0,67375.0,0.000826]
[1729641926722,0.18714508,67376.0,67375.0,0.000826]
[1729641928101,0.20096976,67376.0,67375.0,0.000826]
[1729641928313,0.2788903,67376.0,67375.0,0.000826]
[1729641928553,0.20096989,67376.0,67375.0,0.000826]
[1729641929871,0.18714508,67376.0,67375.0,0.000826]
[1729641930310,0.20096989,67376.0,67375.0,0.000826]
[1729641930541,0.17333879,67376.0,67375.0,0.000826]
[1729641930760,0.20099341,67376.0,67375.0,0.000826]
[1729641930975,0.20099341,67376.0,67375.0,0.00042357]
[1729641931217,0.1871661,67376.0,67375.0,0.00042357]
[1729641931428,0.20099341,67376.0,67375.0,0.00042357]
[1729641931645,0.1871661,67376.0,67375.0,0.00042357]
[1729641936584,0.3059021,67376.0,67375.0,0.00042357]
[1729641936807,0.1871661,67376.0,67375.0,0.00042357]
[1729641937241,0.22962831,67376.0,67375.0,0.00042357]
[1729641938334,0.334537,67376.0,67375.0,0.00042357]
[1729641938549,0.22962851,67376.0,67375.0,0.00042357]
[1729641940049,0.1871663,67376.0,67375.0,0.00042357]
[1729641944472,0.1888183,67376.0,67375.0,0.00042357]
[1729641946462,0.18882043,67376.0,67375.0,0.00042357]
[1729641946907,0.18682011,67376.0,67375.0,0.21076157]
[1729641947116,0.18882011,67376.0,67375.0,0.17502357]
[1729641948235,0.17499079,67376.0,67375.0,0.17502357]
[1729641948976,0.18882055,67376.0,67375.0,0.17502357]
[1729641951130,0.17499079,67376.0,67375.0,0.17502357]
[1729641952180,0.18882074,67376.0,67375.0,0.17502357]
[1729641952413,0.30755674,67376.0,67375.0,0.17502357]
[1729641952663,0.38580461,67376.0,67375.0,0.00042357]
[1729641953507,0.40880461,67376.0,67375.0,0.00042357]
[1729641953915,0.39497466,67376.0,67375.0,0.00042357]
[1729641954136,0.40880188,67376.0,67375.0,0.00042357]
[1729641955489,5.67315825,67376.0,67375.0,0.00042357]
[1729641955726,6.06963031,67376.0,67375.0,0.00042357]
[1729641956574,6.18163031,67376.0,67375.0,0.00042357]
[1729641956988,6.17963031,67376.0,67375.0,0.00042357]
[1729641957204,6.18163031,67376.0,67375.0,0.00042357]
[1729641957869,6.08561054,67376.0,67375.0,0.00042357]
[1729641958304,6.18137612,67376.0,67375.0,0.00042357]
[1729641958742,6.08556482,67376.0,67375.0,0.00042357]
[1729641958955,6.09239965,67376.0,67375.0,0.00042357]
[1729641959395,6.09039965,67376.0,67375.0,0.00042357]
[1729641959617,5.95787555,67376.0,67375.0,0.00042357]
[1729641960485,6.09239965,67376.0,67375.0,0.00042357]
[1729641960694,6.318634,67376.0,67375.0,0.00042357]
[1729641960900,5.91379421,67376.0,67375.0,0.00042357]
[1729641961344,6.18804232,67376.0,67375.0,0.00042357]
[1729641961554,6.09029698,67376.0,67375.0,0.00042357]
[1729641962178,6.18800155,67376.0,67375.0,0.00042357]
[1729641962649,6.18574372,67376.0,67375.0,0.00042357]
[1729641962881,6.18570071,67376.0,67375.0,0.00042357]
[1729641963088,6.31815518,67376.0,67375.0,0.00042357]
[1729641963298,5.95752747,67376.0,67375.0,0.00042357]
[1729641963528,6.0899787,67376.0,67375.0,0.00042357]
[1729641964017,5.95752747,67376.0,67375.0,0.00042357]
[1729641964264,5.91153079,67376.0,67375.0,0.00042357]
[1729641964682,5.9574993,67376.0,67375.0,0.00042357]
[1729641965129,5.95742757,67376.0,67375.0,0.00042357]
[1729641965811,5.95242757,67376.0,67375.0,0.00042357]
[1729641966059,5.91145906,67376.0,67375.0,0.00042357]
[1729641968166,5.91143921,67376.0,67375.0,0.00042357]
[1729641968389,5.91738021,67376.0,67375.0,0.00042357]
[1729641968594,5.90359037,67376.0,67375.0,0.00042357]
[1729641968828,5.91737979,67376.0,67375.0,0.00042357]
[1729641969331,5.91937979,67376.0,67375.0,0.00042357]
[1729641970914,5.91737979,67376.0,67375.0,0.00042357]
[1729641971910,5.91937979,67376.0,67375.0,0.00042357]
[1729641972134,5.91737979,67376.0,67375.0,0.00042357]
[1729641974704,5.91937979,67376.0,67375.0,0.00042357]
[1729641975213,5.9653479,67376.0,67375.0,0.00042357]
[1729641976142,5.96534971,67376.0,67375.0,0.00042357]
[1729641977502,6.08777069,67376.0,67375.0,0.00042357]
[1729641977709,5.95534971,67376.0,67375.0,0.00042357]
[1729641977920,5.96534971,67376.0,67375.0,0.00042357]
[1729641978602,6.09777069,67376.0,67375.0,0.00042357]
[1729641978825,6.09777069,67376.0,67373.0,0.000826]
[1729641978826,0.24903165,67374.0,67373.0,5.7e-07]
[1729641979050,0.92468745,67374.0,67373.0,5.7e-07]
[1729641979262,0.93553043,67374.0,67373.0,5.7e-07]
[1729641979745,0.93553043,67374.0,67357.0,0.22203637]
[1729641979746,0.37035708,67358.0,67357.0,0.22203637]
[1729641979965,5.9050361,67358.0,67357.0,0.22203637]
[1729641980182,5.91586655,67358.0,67357.0,0.22203637]
[1729641980420,0.13207165,67351.0,67347.0,0.080239]
[1729641980667,5.36782066,67351.0,67347.0,0.080239]
[1729641980908,0.143782,67350.0,67347.0,0.080239]
[1729641981122,5.35653101,67350.0,67347.0,0.080239]
[1729641981559,5.51631718,67350.0,67347.0,0.080239]
[1729641982880,5.52131718,67350.0,67347.0,0.080239]
[1729641983551,5.37235803,67350.0,67347.0,0.080239]
[1729641987320,5.38397451,67350.0,67347.0,0.080239]
[1729641987571,5.38396619,67350.0,67347.0,0.080239]
[1729641993900,5.38396619,67350.0,67347.0,0.000839]
[1729641994983,5.38395955,67350.0,67347.0,0.000839]
[1729641995625,5.3902512,67350.0,67347.0,0.000839]
[1729641995840,5.53921035,67350.0,67347.0,0.000839]
[1729641997404,5.55298424,67350.0,67347.0,0.000839]
[1729641998738,5.55298334,67350.0,67347.0,0.000839]
[1729642002765,5.52543545,67350.0,67347.0,0.000839]
[1729642003001,5.55299707,67350.0,67347.0,0.000839]
[1729642004484,5.55300014,67350.0,67347.0,0.000839]
[1729642006130,5.53921626,67350.0,67347.0,0.000839]
[1729642006343,5.55300766,67350.0,67347.0,0.000839]
[1729642012475,0.007,67340.0,67339.0,0.22172937]
[1729642012641,5.33855055,67340.0,67339.0,0.22172937]
[1729642012840,0.002,67338.0,67337.0,0.08214]
[1729642013044,5.21475055,67338.0,67337.0,0.08214]
[1729642013516,5.34431147,67338.0,67337.0,0.08214]
[1729642013770,5.22550847,67338.0,67337.0,0.08214]
[1729642013960,5.22552709,67338.0,67337.0,0.08214]
[1729642014264,5.21171707,67338.0,67337.0,0.08214]
[1729642014471,5.22552722,67338.0,67337.0,0.08214]
[1729642020232,0.17352722,67338.0,67337.0,0.5028738]
[1729642020448,0.17852722,67338.0,67337.0,0.39964243]
[1729642020655,0.18052722,67338.0,67337.0,0.39964243]
[1729642020862,0.16671707,67338.0,67337.0,0.39964243]
[1729642021289,0.15595915,67338.0,67337.0,0.39964243]
[1729642021713,0.16977378,67338.0,67337.0,0.28083743]
[1729642021908,0.16977378,67338.0,67337.0,0.39964243]
[1729642022112,0.18050486,67338.0,67337.0,0.39964243]
[1729642022326,0.16977378,67338.0,67337.0,0.39964243]
[1729642022526,0.18050486,67338.0,67337.0,0.39964243]
[1729642022735,0.15595915,67338.0,67337.0,0.39964243]
[1729642022941,0.16669023,67338.0,67337.0,0.39964243]
[1729642023146,0.1557805,67338.0,67337.0,0.39964243]
[1729642023480,0.1557805,67338.0,67337.0,0.28083743]
[1729642023685,0.1557805,67338.0,67337.0,0.39964243]
[1729642023917,0.16651329,67338.0,67337.0,0.39964243]
[1729642024347,0.16651329,67338.0,67337.0,0.17254]
[1729642024550,0.16651329,67338.0,67337.0,0.39964243]
[1729642024729,0.18033062,67338.0,67337.0,0.39964243]
[1729642025160,0.18033062,67338.0,67337.0,0.17254]
[1729642026679,0.18033062,67338.0,67337.0,0.1726469]
[1729642027790,0.18033717,67338.0,67337.0,0.1726469]
[1729642029794,0.17833717,67338.0,67337.0,0.1726469]
[1729642030014,0.17833717,67338.0,67337.0,0.28094433]
[1729642030234,0.18033717,67338.0,67337.0,0.1726469]
[1729642030471,0.29914017,67338.0,67337.0,0.1726469]
[1729642030696,5.34914017,67338.0,67337.0,0.1726469]
[1729642031741,5.34914024,67338.0,67337.0,0.1726469]
[1729642031927,5.52206949,67338.0,67337.0,0.1726469]
[1729642032141,5.54506949,67338.0,67337.0,0.0822469]
[1729642032531,5.4789318,67338.0,67337.0,0.0822469]
[1729642032706,5.54506949,67338.0,67337.0,0.0822469]
[1729642033419,5.4789318,67338.0,67337.0,0.0822469]
[1729642033847,5.4789318,67338.0,67337.0,0.0009469]
[1729642034641,5.37214027,67338.0,67337.0,0.0009469]
[1729642035492,5.43849221,67338.0,67337.0,0.0009469]
[1729642035928,5.44537327,67338.0,67337.0,0.0009469]
[1729642039336,5.37901515,67338.0,67337.0,0.0009469]
[1729642039616,5.44536709,67338.0,67337.0,0.0009469]
[1729642040350,5.37901515,67338.0,67337.0,0.0009469]
[1729642040597,5.44536709,67338.0,67337.0,0.0009469]
[1729642041335,5.59432624,67338.0,67337.0,0.0009469]
[1729642041579,5.59432482,67338.0,67337.0,0.0009469]
[1729642041822,5.60061647,67338.0,67337.0,0.0009469]
[1729642042535,5.70561647,67338.0,67337.0,0.0009469]
[1729642042790,5.80253475,67338.0,67337.0,0.0009469]
[1729642043057,5.84859832,67338.0,67337.0,0.0009469]
[1729642044260,5.84853025,67338.0,67337.0,0.0009469]
[1729642044495,5.94283025,67338.0,67337.0,0.0009469]
[1729642046900,5.94281581,67338.0,67337.0,0.0009469]
[1729642047362,5.94281569,67338.0,67337.0,0.0009469]
[1729642047823,5.94281569,67338.0,67337.0,0.00037608]
[1729642047824,6.02911569,67338.0,67337.0,0.00037608]
[1729642048064,0.146846,67314.0,67313.0,0.22213647]
[1729642048317,5.21064244,67314.0,67313.0,0.22213647]
[1729642048563,5.21064244,67314.0,67313.0,0.0001001]
[1729642048564,5.2205152,67314.0,67313.0,0.0001001]
[1729642048802,5.20671876,67314.0,67313.0,0.0001001]
[1729642049034,5.20871876,67314.0,67313.0,0.0001001]
[1729642049310,5.35767791,67314.0,67313.0,0.0001001]
[1729642051512,5.50085728,67314.0,67313.0,0.0001001]
[1729642051781,1.73667791,67314.0,67313.0,0.0001001]
[1729642052007,1.65267791,67314.0,67313.0,0.0001001]
[1729642052680,1.39767791,67314.0,67313.0,0.0001001]
[1729642052892,1.39767791,67314.0,67313.0,0.0928001]
[1729642054453,1.39767791,67314.0,67313.0,0.0927]
[1729642054663,1.25583191,67314.0,67313.0,0.28029743]
[1729642054890,1.13783191,67314.0,67313.0,0.28029743]
[1729642055094,1.13583191,67314.0,67313.0,0.28029743]
[1729642055539,0.16383191,67314.0,67313.0,0.28029743]
[1729642055975,0.16583191,67314.0,67313.0,0.28029743]
[1729642057276,0.28467791,67314.0,67313.0,0.172]
[1729642059639,0.33755167,67314.0,67313.0,0.172]
[1729642061148,0.28467791,67314.0,67313.0,0.172]
[1729642062046,0.28467791,67314.0,67313.0,0.172826]
[1729642079396,0.00987276,67314.0,67313.0,0.291673]
[1729642079623,0.00987276,67314.0,67313.0,0.39997043]
[1729642079836,0.005086,67316.0,67313.0,0.10912343]
[1729642080054,0.15404515,67316.0,67315.0,0.28579743]
[1729642080467,0.16683155,67316.0,67315.0,0.28579743]
[1729642080674,0.16883155,67316.0,67315.0,0.28579743]
[1729642082340,0.28767355,67316.0,67315.0,0.28579743]
[1729642082543,0.16883155,67316.0,67315.0,0.28579743]
[1729642082755,0.16883155,67316.0,67315.0,0.40464143]
[1729642083176,0.33864404,67316.0,67315.0,0.0782]
[1729642084001,0.125846,67314.0,67313.0,0.0835261]
[1729642084206,0.27480515,67314.0,67313.0,0.0835261]
[1729642084407,0.28759422,67314.0,67313.0,0.0835261]
[1729642085756,0.28759422,67314.0,67313.0,0.083426]
[1729642088084,0.31059422,67314.0,67313.0,0.083426]
[1729642088292,5.46346644,67314.0,67313.0,0.000826]
[1729642089783,0.31059422,67314.0,67313.0,0.000826]
[1729642093520,0.16674822,67314.0,67313.0,0.000826]
[1729642093729,0.28559422,67314.0,67313.0,0.000826]
[1729642093933,0.16674822,67314.0,67313.0,0.000826]
[1729642094150,0.16874822,67314.0,67313.0,0.000826]
[1729642102296,0.16674822,67314.0,67313.0,0.000826]
[1729642102969,0.16174822,67314.0,67313.0,0.000826]
[1729642103190,0.01278907,67314.0,67313.0,0.40577878]
[1729642103407,8.6e-05,67316.0,67315.0,0.00370835]
[1729642103640,8.6e-05,67316.0,67315.0,0.29665235]
[1729642106049,8.6e-05,67316.0,67315.0,0.29675245]
[1729642108545,0.22203637,67331.0,67329.0,0.237639]
[1729642108817,0.22203637,67331.0,67330.0,0.30661443]
[1729642109318,0.005,67333.0,67332.0,0.118814]
[1729642110803,0.15395915,67333.0,67332.0,0.29662235]
[1729642111535,0.001652,67337.0,67331.0,0.237631]
[1729642111536,0.001652,67337.0,67336.0,0.118807]
[1729642111794,0.001652,67337.0,67336.0,0.40120443]
[1729642112534,0.001652,67337.0,67336.0,0.51321021]
[1729642112796,0.001652,67337.0,67336.0,0.40491278]
[1729642113312,0.001652,67337.0,67336.0,0.51321021]
[1729642113574,0.001652,67337.0,67336.0,0.61321021]
[1729642113795,0.001652,67337.0,67336.0,0.72150764]
[1729642114016,0.001652,67338.0,67337.0,0.40051335]
[1729642114241,0.001652,67338.0,67337.0,0.5494725]
[1729642114468,0.001652,67338.0,67337.0,0.88822278]
[1729642114687,0.005,67358.0,67352.0,0.12248635]
[1729642114909,0.22203637,67360.0,67352.0,0.46986149]
[1729642115193,0.22703637,67360.0,67359.0,0.118766]
[1729642115409,0.37099552,67360.0,67359.0,0.28814114]
[1729642115633,0.005,67365.0,67361.0,0.0805]
[1729642115858,0.005,67365.0,67364.0,0.28813214]
[1729642116742,0.001652,67370.0,67369.0,0.118748]
[1729642116992,0.006652,67370.0,67369.0,0.29109146]
[1729642117204,0.001652,67370.0,67369.0,0.37159146]
[1729642117420,0.006652,67370.0,67369.0,0.36862314]
[1729642118519,0.001652,67370.0,67369.0,0.36862314]
[1729642118965,0.006652,67370.0,67369.0,0.36862314]
[1729642119194,0.006652,67370.0,67369.0,0.199248]
[1729642119416,0.007,67366.0,67365.0,0.00370835]
[1729642119637,0.15595915,67366.0,67365.0,0.00370835]
[1729642120079,0.15395915,67366.0,67365.0,0.00370835]
[1729642123410,0.15395915,67366.0,67365.0,0.12246435]
[1729642123646,0.002,67369.0,67368.0,0.11875]
[1729642123647,0.005,67369.0,67368.0,0.11875]
[1729642123889,0.16561574,67369.0,67368.0,0.11875]
[1729642125827,0.01165659,67369.0,67368.0,0.11875]
[1729642126065,0.01165659,67369.0,67368.0,0.30342659]
[1729642126322,0.001652,67370.0,67369.0,0.12245635]
[1729642126575,0.005,67369.0,67367.0,0.118752]
[1729642126867,0.14895915,67368.0,67367.0,0.118752]
[1729642127110,0.01165987,67368.0,67367.0,0.118752]
[1729642127373,0.01165987,67368.0,67367.0,0.1217204]
[1729642127643,0.001652,67370.0,67369.0,0.118748]
[1729642127871,0.001652,67370.0,67369.0,0.30045635]
[1729642128571,0.001652,67370.0,67369.0,0.30342457]
[1729642129555,0.001652,67370.0,67369.0,0.30230241]
[1729642130037,0.001652,67370.0,67369.0,0.29933419]
[1729642130793,0.001652,67370.0,67369.0,0.30230228]
[1729642130797,0.001652,67370.0,67369.0,0.29933419]
[1729642133768,0.001652,67370.0,67369.0,0.29921472]
[1729642135352,0.006652,67370.0,67369.0,0.29921472]
[1729642135577,0.008652,67370.0,67369.0,0.20171472]
[1729642135819,0.006652,67370.0,67369.0,0.20171472]
[1729642136479,0.008652,67370.0,67369.0,0.19800637]
[1729642136905,0.008652,67370.0,67369.0,0.20171472]
[1729642137143,0.006652,67370.0,67369.0,0.20171472]
[1729642137356,0.008652,67370.0,67369.0,0.20171472]
[1729642137567,0.006652,67370.0,67369.0,0.20171472]
[1729642138871,0.008652,67370.0,67369.0,0.20171472]
[1729642139072,0.002,67368.0,67367.0,0.00370835]
[1729642139281,0.005,67369.0,67368.0,0.12245835]
[1729642140632,0.007,67369.0,67368.0,0.12245835]
[1729642142720,0.005,67369.0,67368.0,0.12245835]
[1729642143692,0.02254975,67369.0,67368.0,0.12245835]
[1729642144446,0.02454975,67369.0,67368.0,0.12245835]
[1729642145688,0.1735089,67369.0,67368.0,0.12245835]
[1729642145949,0.002,67367.0,67366.0,0.12246235]
[1729642146257,0.007,67367.0,67366.0,0.12246235]
[1729642146411,0.02455094,67367.0,67366.0,0.12246235]
[1729642147351,0.007,67366.0,67364.0,0.20166435]
[1729642147583,0.16651009,67367.0,67361.0,0.00370835]
[1729642147584,0.005,67362.0,67361.0,0.00370835]
[1729642147810,0.007,67361.0,67360.0,0.36000035]
[1729642148465,0.01776222,67361.0,67360.0,0.36000035]
[1729642148897,0.01576222,67361.0,67360.0,0.36000035]
[1729642149333,0.005,67361.0,67360.0,0.356292]
[1729642149556,0.005,67361.0,67360.0,0.36000035]
[1729642150280,0.15395915,67361.0,67360.0,0.118764]
[1729642150520,0.16469444,67361.0,67360.0,0.12247235]
[1729642151036,0.15395915,67361.0,67360.0,0.12247235]
[1729642151321,0.14895915,67361.0,67360.0,0.12247235]
[1729642151748,0.15395915,67361.0,67360.0,0.12247235]
[1729642157186,0.15595915,67361.0,67360.0,0.12247235]
[1729642157427,0.16667925,67361.0,67360.0,0.12247235]
[1729642157670,0.16467925,67361.0,67360.0,0.12247235]
[1729642157917,0.15395915,67361.0,67360.0,0.12247235]
[1729642160187,0.005,67360.0,67359.0,0.083]
[1729642160444,0.15395915,67360.0,67359.0,0.201766]
[1729642160685,0.15395915,67360.0,67359.0,0.118766]
[1729642160686,0.16467925,67360.0,67359.0,0.118766]
[1729642160929,0.16667925,67360.0,67359.0,0.118766]
[1729642161179,0.16467925,67360.0,67359.0,0.118766]
[1729642161420,0.16467925,67360.0,67359.0,0.12247435]
[1729642161675,0.15395915,67360.0,67359.0,0.12247435]
[1729642161926,0.15595915,67360.0,67359.0,0.12247435]
[1729642162394,0.16667925,67360.0,67359.0,0.12247435]
[1729642162611,0.15595915,67360.0,67359.0,0.12247435]
[1729642163559,0.007,67358.0,67355.0,0.0794]
[1729642163789,0.237509,67366.0,67352.0,0.118778]
[1729642163790,0.005,67353.0,67352.0,0.118778]
[1729642164044,0.005,67353.0,67349.0,0.32067635]
[1729642164045,0.007,67350.0,67349.0,0.43946035]
[1729642164284,0.005,67350.0,67349.0,0.36006035]
[1729642164516,0.0177181,67350.0,67349.0,0.356352]
[1729642164768,0.007,67350.0,67349.0,0.356352]
[1729642164996,0.0157181,67350.0,67349.0,0.356352]
[1729642165223,0.005,67350.0,67349.0,0.356352]
[1729642165493,0.16467725,67350.0,67349.0,0.118784]
[1729642166426,0.16467725,67350.0,67346.0,0.198189]
[1729642166427,0.005,67347.0,67346.0,0.198189]
[1729642167782,0.005,67347.0,67346.0,0.20189735]
[1729642168987,0.005,67347.0,67346.0,0.198189]
[1729642169398,0.007,67347.0,67346.0,0.198189]
[1729642169616,0.007,67347.0,67346.0,0.20189735]
[1729642170463,0.005,67347.0,67346.0,0.20189735]
[1729642174099,0.005,67347.0,67346.0,0.20272235]
[1729642174337,0.005,67347.0,67346.0,0.199014]
[1729642176904,0.15395915,67347.0,67346.0,0.199014]
[1729642179304,0.002,67352.0,67346.0,0.199014]
[1729642179305,0.005,67352.0,67351.0,0.11878]
[1729642179530,0.005,67352.0,67351.0,0.30448115]
[1729642189637,0.005,67354.0,67351.0,0.18570115]
[1729642189896,0.14895915,67354.0,67353.0,0.118777]
[1729642190523,0.15395915,67354.0,67353.0,0.118777]
[1729642190940,0.14895915,67354.0,67353.0,0.118777]
[1729642191151,0.14895915,67354.0,67351.0,0.18570115]
[1729642191152,0.15395915,67354.0,67351.0,0.30448115]
[1729642191379,0.16466099,67354.0,67351.0,0.18570115]
[1729642191590,0.16466099,67354.0,67351.0,0.0773]
[1729642192265,0.16466099,67354.0,67351.0,0.196078]
[1729642193368,0.16666099,67354.0,67351.0,0.196078]
[1729642196803,0.16466099,67354.0,67351.0,0.196078]
[1729642197013,0.16466099,67354.0,67352.0,0.118778]
[1729642197167,0.16466099,67354.0,67353.0,0.118777]
[1729642197419,0.16466099,67354.0,67351.0,0.18570115]
[1729642197782,0.15395915,67354.0,67353.0,0.118777]
[1729642198787,0.15395915,67354.0,67351.0,0.30530615]
[1729642198994,0.15395915,67354.0,67352.0,0.237557]
[1729642199211,0.14895915,67354.0,67353.0,0.118777]
[1729642200314,0.14895915,67354.0,67351.0,0.18652615]
[1729642200517,0.14895915,67354.0,67353.0,0.118777]
[1729642201251,0.16466099,67354.0,67351.0,0.18652615]
[1729642201663,0.002,67353.0,67351.0,0.078125]
[1729642201843,0.01070006,67352.0,67351.0,0.078125]
[1729642202463,0.01270006,67352.0,67351.0,0.078125]
[1729642203123,0.01070006,67352.0,67351.0,0.078125]
[1729642203667,0.01070006,67352.0,67351.0,0.196905]
[1729642204095,0.15595915,67354.0,67351.0,0.196905]
[1729642204295,0.0107064,67353.0,67351.0,0.196905]
[1729642204704,0.002,67352.0,67351.0,0.196905]
[1729642204958,0.01270746,67352.0,67351.0,0.196905]
[1729642205565,0.01270746,67352.0,67351.0,0.078125]
[1729642206112,0.01070746,67352.0,67351.0,0.196905]
[1729642206246,0.15395915,67354.0,67351.0,0.078125]
[1729642206452,0.0107064,67353.0,67351.0,0.078125]
[1729642206830,0.002,67352.0,67351.0,0.078125]
[1729642207034,0.01270746,67352.0,67351.0,0.078125]
[1729642207924,0.01270746,67352.0,67351.0,0.196905]
[1729642208450,0.01270746,67352.0,67351.0,0.119605]
[1729642210138,0.01070746,67352.0,67351.0,0.119605]
[1729642210317,0.15395915,67354.0,67351.0,0.119605]
[1729642210525,0.01063628,67353.0,67351.0,0.119605]
[1729642210731,0.15395915,67354.0,67351.0,0.119605]
[1729642210933,0.15395915,67354.0,67353.0,0.118777]
[1729642211145,0.005,67355.0,67354.0,0.118775]
[1729642211352,0.007,67355.0,67354.0,0.118775]
[1729642211969,0.005,67355.0,67354.0,0.118775]
[1729642213978,0.01563734,67355.0,67354.0,0.118775]
[1729642215035,0.01763734,67355.0,67354.0,0.118775]
[1729642215261,0.01563734,67355.0,67354.0,0.118775]
[1729642216097,0.01763734,67355.0,67354.0,0.118775]
[1729642216328,0.01563734,67355.0,67354.0,0.118775]
[1729642216740,0.01763734,67355.0,67354.0,0.118775]
[1729642217812,0.01563734,67355.0,67354.0,0.118775]
[1729642218963,0.01763734,67355.0,67354.0,0.118775]
[1729642223442,0.01763734,67355.0,67354.0,0.1196]
[1729642223655,0.01763734,67355.0,67354.0,0.000825]
[1729642225448,0.01763734,67355.0,67354.0,0.1196]
[1729642225672,0.01063734,67355.0,67354.0,0.29477749]
[1729642225903,0.01063734,67355.0,67354.0,0.29180835]
[1729642226122,0.04925125,67366.0,67364.0,0.1685]
[1729642226337,0.04925125,67366.0,67365.0,0.22715715]
[1729642226809,0.04925125,67366.0,67365.0,0.10840115]
[1729642226810,0.005,67366.0,67365.0,0.10840115]
[1729642227273,0.005,67366.0,67365.0,0.22715715]
[1729642228235,0.005,67366.0,67365.0,0.10840115]
[1729642228471,0.007,67366.0,67365.0,0.10840115]
[1729642228739,0.007,67366.0,67364.0,0.287257]
[1729642228993,0.002,67365.0,67364.0,0.287257]
[1729642229716,0.01263035,67365.0,67364.0,0.287257]
[1729642230864,0.01263035,67365.0,67364.0,0.1685]
[1729642231103,0.002,67360.0,67359.0,0.08110835]
[1729642231318,0.002,67360.0,67358.0,0.0911]
[1729642231319,0.007,67359.0,67358.0,0.00370835]
[1729642231543,0.15595915,67359.0,67358.0,0.00370835]
[1729642231767,0.16661613,67359.0,67358.0,0.00370835]
[1729642232646,0.16661613,67359.0,67358.0,0.12247635]
[1729642233129,0.16661613,67359.0,67358.0,0.118768]
[1729642233347,0.16661613,67359.0,67358.0,0.12247635]
[1729642238445,0.16661613,67359.0,67358.0,0.118768]
[1729642238935,0.16661613,67359.0,67358.0,0.12247635]
[1729642239896,0.15595915,67359.0,67358.0,0.12247635]
[1729642240132,0.15595915,67359.0,67358.0,0.118768]
[1729642240360,0.16688063,67359.0,67358.0,0.118768]
[1729642242985,0.002,67358.0,67357.0,0.118768]
[1729642243217,0.15595915,67358.0,67357.0,0.118768]
[1729642244185,0.16687879,67358.0,67357.0,0.118768]
[1729642247205,0.007,67355.0,67354.0,0.000825]
[1729642247451,5.53272495,67355.0,67354.0,0.000825]
[1729642247680,5.54863742,67355.0,67354.0,0.000825]
[1729642248127,5.71271122,67355.0,67354.0,0.000825]
[1729642248399,5.84323532,67355.0,67354.0,0.000825]
[1729642248639,6.46561568,67355.0,67354.0,0.000825]
[1729642248853,6.47943465,67355.0,67354.0,0.000825]
[1729642249305,0.01,67352.0,67351.0,0.000825]
[1729642249512,0.76853091,67352.0,67351.0,0.000825]
[1729642249776,0.4458798,67347.0,67346.0,0.22286137]
[1729642249997,6.09514279,67347.0,67346.0,0.22286137]
[1729642250217,6.10595913,67347.0,67346.0,0.000825]
[1729642250430,6.18381789,67347.0,67346.0,0.000825]
[1729642250647,6.20595913,67347.0,67346.0,0.000825]
[1729642250855,6.09749523,67347.0,67346.0,0.000825]
[1729642251107,6.20589638,67347.0,67346.0,0.000825]
[1729642251311,6.20389638,67347.0,67346.0,0.000825]
[1729642251528,6.20582996,67347.0,67346.0,0.000825]
[1729642251956,6.09549523,67347.0,67346.0,0.000825]
[1729642253034,6.09543969,67347.0,67346.0,0.000825]
[1729642253470,5.93220578,67347.0,67346.0,0.000825]
[1729642254641,5.99832861,67347.0,67346.0,0.000825]
[1729642255447,5.97627213,67347.0,67346.0,0.000825]
[1729642255910,0.92627213,67347.0,67346.0,0.000825]
[1729642256106,5.97627213,67347.0,67346.0,0.000825]
[1729642256364,5.93220578,67347.0,67346.0,0.000825]
[1729642256787,5.9983221,67347.0,67346.0,0.000825]
[1729642257002,5.98448054,67347.0,67346.0,0.000825]
[1729642257234,5.91836422,67347.0,67346.0,0.000825]
[1729642257505,5.9624075,67347.0,67346.0,0.000825]
[1729642257965,5.9761539,67347.0,67346.0,0.000825]
[1729642258417,5.93211062,67347.0,67346.0,0.000825]
[1729642259094,5.9761539,67347.0,67346.0,0.000825]
[1729642259545,5.93211062,67347.0,67346.0,0.000825]
[1729642259796,5.93805362,67347.0,67346.0,0.000825]
[1729642260253,5.9380445,67347.0,67346.0,0.000825]
[1729642261922,5.65224335,67347.0,67346.0,0.000825]
[1729642262149,5.74095797,67347.0,67346.0,0.000825]
[1729642264268,5.71795797,67347.0,67346.0,0.000825]
[1729642265545,5.71995797,67347.0,67346.0,0.000825]
[1729642265791,6.02675912,67347.0,67346.0,0.000825]
[1729642266781,5.91835797,67347.0,67346.0,0.000825]
[1729642270003,5.91836334,67347.0,67346.0,0.000825]
[1729642270216,5.92036334,67347.0,67346.0,0.000825]
[1729642271081,5.94236378,67347.0,67346.0,0.000825]
[1729642272159,5.90661444,67347.0,67346.0,0.000825]
[1729642272394,5.94238793,67347.0,67346.0,0.000825]
[1729642273506,5.94240217,67347.0,67346.0,0.000825]
[1729642277139,5.94253071,67347.0,67346.0,0.000825]
[1729642278705,5.94053071,67347.0,67346.0,0.000825]
[1729642279799,5.85973071,67347.0,67346.0,0.000825]
[1729642280956,5.90570797,67347.0,67346.0,0.000825]
[1729642281165,0.012,67340.0,67339.0,0.000825]
[1729642281365,0.42407657,67340.0,67339.0,0.000825]
[1729642281595,5.47407657,67340.0,67339.0,0.000825]
[1729642281804,5.48486893,67340.0,67339.0,0.000825]
[1729642282917,5.49116058,67340.0,67339.0,0.000825]
[1729642283767,5.56013163,67340.0,67339.0,0.000825]
[1729642283980,5.60622678,67340.0,67339.0,0.000825]
[1729642287895,5.61312169,67340.0,67339.0,0.000825]
[1729642288798,5.61316344,67340.0,67339.0,0.000825]
[1729642290145,5.43579124,67340.0,67339.0,0.000825]
[1729642290363,2.88879124,67340.0,67339.0,0.000825]
[1729642291430,2.86666323,67340.0,67339.0,0.000825]
[1729642291644,2.9106416,67340.0,67339.0,0.000825]
[1729642292136,4.3456416,67340.0,67339.0,0.000825]
[1729642292358,4.36777151,67340.0,67339.0,0.000825]
[1729642292575,4.57488323,67340.0,67339.0,0.000825]
[1729642292787,4.72384238,67340.0,67339.0,0.000825]
[1729642293424,3.49583156,67340.0,67339.0,0.000825]
[1729642293656,3.44973641,67340.0,67339.0,0.000825]
[1729642293863,3.49583953,67340.0,67339.0,0.000825]
[1729642294503,3.38589361,67340.0,67339.0,0.000825]
[1729642295812,3.33979049,67340.0,67339.0,0.000825]
[1729642296483,3.34004026,67340.0,67339.0,0.000825]
[1729642297853,2.98308111,67340.0,67339.0,0.000825]
[1729642299271,3.02918922,67340.0,67339.0,0.000825]
[1729642300416,1.1741862,67340.0,67339.0,0.000825]
[1729642300655,1.1741862,67340.0,67339.0,0.170125]